Cogmind - Beta 9.2 @@@ ROGUE MODE // 2019.11.13 @ 16:16:16 Player: Pimski Result: Destroyed by Y5-0DQ(z) with Zionite Laser-S Performance ------------- Evolutions (3) 1500 Regions Visited (15) 3000 Robots Destroyed (188) 940 Value Destroyed (3468) 3468 Prototype IDs (50) 1000 Alien Tech Used (0) 0 Bonus (176) 176 TOTAL SCORE: 10084 Bonus ------- High Alert Combat Kills 225 Follower Combat Kills 217 Aligned with FarCom 300 Friendly Fire -566 Cogmind --------- Core Integrity 0/700 Matter 300/300 Energy 985/1100 System Corruption 0% Temperature Cool (9) Movement Flying (35) Location -7/Deep Caves Parts ------- > --- POWER (1) -------- (None) > --- PROPULSION (4) --- Improved Cesium-ion Thruster > --- UTILITY (6) ------ Experimental Energy Well Advanced Signal Interpreter > --- WEAPON (2) ------- Chainsword > --- INVENTORY (4) ---- Improved Cesium-ion Thruster Improved Cesium-ion Thruster Peak State ------------ > --- POWER ------------ Cold Fusion Reactor > --- PROPULSION ------- Improved Cesium-ion Thruster Improved Cesium-ion Thruster Improved Cesium-ion Thruster Improved Cesium-ion Thruster > --- UTILITY ---------- Medium Storage Unit Experimental Energy Well Experimental Sensor Array Advanced Signal Interpreter Thermal Barrier Improved Hacking Suite > --- WEAPON ----------- Chainsword Chainsword > --- INVENTORY -------- Light Angular Momentum Engine Combat Antigrav System Combat Antigrav System Combat Antigrav System Improved Cesium-ion Thruster Improved Cesium-ion Thruster Chronowheel Deploy-a-Sentry [Rating: 73] Favorites ----------- Power Nuclear Core Engine Heavy Deuterium Engine Power Core Nuclear Core Reactor Cold Fusion Reactor Propulsion Light Treads Treads Light Treads Leg Aluminum Leg Flight Unit Improved Cesium-ion Thruster Utility High-capacity Storage Unit Device Advanced Weapon Cycler Storage High-capacity Storage Unit Processor Advanced Signal Interpreter Hackware Improved Hacking Suite Protection Medium Armor Plating Weapon Heavy Assault Rifle Energy Gun AWS/EX-DEC Ballistic Gun Heavy Assault Rifle Launcher Grenade Launcher Slashing Weapon Chainsword Build | -11 -10 -10 -9 -9 -9 -8 -8 -8 -7 -7 -7 -7 -7 -7 -7 ------- Run | Scr Mat Min Mat Min Exi Min Mat Sto Fac Was Fac Low Low Zio Dee Slots Evolved 6 | . . . 2 . . . 2 . 2 . . . . . . Power . | . . . . . . . . . . . . . . . . Propulsion 2 | . . . . . . . . . 2 . . . . . . Utility 4 | . . . 2 . . . 2 . . . . . . . . Weapon . | . . . . . . . . . . . . . . . . Parts Attached 146 | 1 8 2 10 2 19 14 35 24 26 1 . . . 1 3 Power 13 | . 1 1 . . 3 . 2 2 3 . . . . . 1 Engine 5 | . 1 . . . 2 . . 1 . . . . . . 1 Core 5 | . . 1 . . . . 2 1 1 . . . . . . Reactor 3 | . . . . . 1 . . . 2 . . . . . . Propulsion 37 | . 2 . 3 . 2 3 9 6 12 . . . . . . Treads 25 | . 2 . 2 . 2 3 8 6 2 . . . . . . Leg . | . . . . . . . . . . . . . . . . Wheel . | . . . . . . . . . . . . . . . . Hover . | . . . . . . . . . . . . . . . . Flight 12 | . . . 1 . . . 1 . 10 . . . . . . Utility 41 | 1 3 . 3 . 5 6 8 4 8 1 . . . . 2 Device 8 | . . . . . . 3 2 . 3 . . . . . . Storage 16 | 1 3 . 1 . 4 2 2 1 2 . . . . . . Processor 3 | . . . . . 1 1 . . 1 . . . . . . Hackware 3 | . . . . . . . . . 2 1 . . . . . Protection 11 | . . . 2 . . . 4 3 . . . . . . 2 Artifact . | . . . . . . . . . . . . . . . . Weapon 55 | . 2 1 4 2 9 5 16 12 3 . . . . 1 . Energy Gun 1 | . . . . . 1 . . . . . . . . . . Energy Cannon . | . . . . . . . . . . . . . . . . Ballistic Gun 39 | . 2 1 4 1 6 5 13 7 . . . . . . . Ballistic Cannon . | . . . . . . . . . . . . . . . . Launcher 6 | . . . . 1 2 . 2 1 . . . . . . . Special Weapon . | . . . . . . . . . . . . . . . . Impact Weapon . | . . . . . . . . . . . . . . . . Slashing Weapon 9 | . . . . . . . 1 4 3 . . . . 1 . Piercing Weapon . | . . . . . . . . . . . . . . . . Special Melee Weapon . | . . . . . . . . . . . . . . . . Unidentified Prototypes 13 | . . . 1 . 3 4 2 1 1 . . . . . 1 Parts Lost 39 | . . . 1 . 7 5 11 2 3 . . . . . 10 Power 6 | . . . . . 1 . 2 1 . . . . . . 2 Propulsion 10 | . . . . . 2 2 1 1 1 . . . . . 3 Utility 12 | . . . 1 . 1 1 3 . 2 . . . . . 4 Weapon 11 | . . . . . 3 2 5 . . . . . . . 1 Highest Loss Streak 10 | . . . 1 . 6 2 3 2 3 . . . . . 10 Average Slot Usage (%) 98 | . 99 100 99 100 96 98 96 99 96 100 100 100 100 100 80 Engine 2 | . 13 . . . 2 11 1 2 3 . . . . . . Core 5 | . . 13 11 11 5 . 5 5 . . . . . . . Reactor 1 | . . . . . . . . . 2 7 7 7 7 7 5 Treads 17 | . 25 28 22 22 22 22 18 18 13 . . . . . . Flight 5 | . . . . . . . . . 14 30 30 30 30 30 25 Device 5 | . . . . . . . 9 8 7 15 15 15 15 15 8 Storage 30 | . 28 28 32 33 33 43 36 36 22 15 15 15 15 15 11 Processor 1 | . . . . . 4 . . . 3 7 7 7 7 7 7 Hackware 1 | . . . . . . . . . 7 7 7 7 7 7 4 Protection 4 | . . . 10 11 5 . 7 9 1 . . . . . . Ballistic Gun 17 | . 27 28 22 21 21 21 17 17 7 . . . . . . Slashing Weapon 2 | . . . . . . . . . 7 15 15 15 15 15 13 Naked Turns . | . . . . . . . . . . . . . . . . Heaviest Build 134 | 14 54 58 84 85 116 117 129 134 127 30 30 30 30 30 30 Greatest Support 80 | 20 40 40 40 40 40 43 43 40 80 32 32 32 32 32 32 Greatest Overweight (x) 6 | . 1 1 2 2 2 2 6 3 2 . . . . . . Average Overweight (x) 1 | . . 1 1 2 2 2 2 3 . . . . . . . Largest Inventory Capacity 38 | 8 18 18 24 24 28 28 34 38 38 8 8 8 8 8 8 Average Capacity 23 | 6 17 18 23 24 27 28 29 34 21 8 8 8 8 8 5 Most Carried 36 | 6 18 18 24 24 28 28 34 36 35 8 8 8 8 8 8 Average Carried 23 | 6 14 17 23 24 26 27 28 34 21 7 8 8 8 8 5 Final Capacity 38 | 8 18 18 24 24 28 28 34 38 8 8 8 8 8 8 4 Final Carried 36 | 6 18 18 24 24 28 28 34 36 8 8 8 8 8 8 2 Class Distribution -------------------- 61% | Hauler-Mutant 16% | Mutant 8% | Scavenger-Sprinter 6% | Sprinter 5% | Scavenger-Mutant Dominant Class ---------------- Mutant | -10/Materials Mutant | -10/Mines Hauler-Mutant | -9/Materials Hauler-Mutant | -9/Mines Hauler-Mutant | -9/Exiles Hauler-Mutant | -8/Mines Hauler-Mutant | -8/Materials Hauler-Mutant | -8/Storage Hauler-Mutant | -7/Factory Scavenger-Sprinter | -7/Waste Sprinter | -7/Factory Sprinter | -7/Lower Caves Sprinter | -7/Lower Caves Scavenger-Sprinter | -7/Zion Scavenger-Sprinter | -7/Deep Caves Resources | -11 -10 -10 -9 -9 -9 -8 -8 -8 -7 -7 -7 -7 -7 -7 -7 ----------- Run | Scr Mat Min Mat Min Exi Min Mat Sto Fac Was Fac Low Low Zio Dee Matter Collected 4869 | 218 170 292 355 35 650 259 1513 920 387 . 24 . 13 10 23 Remotely . | . . . . . . . . . . . . . . . . Salvage Created 6670 | 73 212 63 708 . 409 327 2261 1837 589 . 88 . . 56 47 Parts 430 | 3 9 10 46 . 71 34 125 100 22 . 6 . . 4 . Haulers Intercepted 19 | . 2 . 2 . . . 5 6 2 . 2 . . . . Recyclers Shooed 8 | . . . 2 . . . 5 1 . . . . . . . Parts Field Recycled . | . . . . . . . . . . . . . . . . Retrieved Matter . | . . . . . . . . . . . . . . . . Parts Self-Destructed . | . . . . . . . . . . . . . . . . Prevented . | . . . . . . . . . . . . . . . . Kills | -11 -10 -10 -9 -9 -9 -8 -8 -8 -7 -7 -7 -7 -7 -7 -7 ------- Run | Scr Mat Min Mat Min Exi Min Mat Sto Fac Was Fac Low Low Zio Dee Combat Hostiles Destroyed 114 | . 3 5 8 . 4 14 47 25 4 . . . . 1 3 Melee 4 | . . . . . . . . . . . . . . 1 3 Guns 95 | . 3 5 8 . 1 14 36 25 3 . . . . . . AOE 15 | . . . . . 3 . 11 . 1 . . . . . . Classes Destroyed 17 | 1 2 1 3 . 3 . 4 1 1 . . . . 1 . Worker 12 | . . . 2 . . . 5 4 1 . . . . . . Builder 2 | . . . . . . . 1 . 1 . . . . . . Tunneler 2 | . . . . . . . . . 2 . . . . . . Hauler 19 | . 2 . 2 . . . 5 6 2 . 2 . . . . Recycler 20 | 1 . . 3 . . . 6 6 4 . . . . . . Operator 4 | . . . . . . . 1 2 1 . . . . . . Turret 1 | . . . . . 1 . . . . . . . . . . Watcher 2 | . . . 1 . . . . 1 . . . . . . . Swarmer 52 | . . 5 3 . . 13 20 11 . . . . . . . Grunt 28 | . 3 . 1 . . . 15 5 4 . . . . . . Brawler 3 | . . . . . . . 3 . . . . . . . . Duelist 1 | . . . . . . . . 1 . . . . . . . Protector 1 | . . . . . . . 1 . . . . . . . . Sentry 20 | . . . 4 . . . 8 8 . . . . . . . Zionite 7 | . . . . . 7 . . . . . . . . . . Assembled 8 | . . . . . 5 . . . . . . . . . 3 Mutant 1 | . . . . . . . . . . . . . . 1 . Best Kill Streak 7 | 1 2 3 4 . 3 3 7 6 6 . 1 . . 1 3 Combat Bots Only 6 | . 2 3 3 . 3 3 6 4 3 . . . . 1 3 Max Kills in Single Turn 4 | 1 1 1 2 . 2 1 2 2 4 . 1 . . 1 1 Gunslinging 1 | . . . 1 . . . 1 1 . . . . . . . Exploded 2 | . . . . . 2 . 2 . 1 . . . . . . Melee 1 | . . . . . . . . . . . . . . 1 1 Uniques/NPCs Destroyed 3 | . . . . . 2 1 . . . . . . . . . 8R-AWN (-9/Exiles) EX-DEC (-9/Exiles) EX-HEX (-9/Exiles) EX-BIN (-9/Exiles) NK-0LA (-8/Mines) Combat | -11 -10 -10 -9 -9 -9 -8 -8 -8 -7 -7 -7 -7 -7 -7 -7 -------- Run | Scr Mat Min Mat Min Exi Min Mat Sto Fac Was Fac Low Low Zio Dee Damage Taken 8135 | . 174 107 243 96 1259 1034 2119 1085 310 . 145 9 31 156 1367 Core 1441 | . 32 8 29 15 79 98 340 137 14 . 63 9 . 59 558 Absorbed by Shields . | . . . . . . . . . . . . . . . . Core Remaining (%) 60 | 100 . 84 . . . 44 . 13 . . . . . . . Volleys Fired 496 | 2 21 7 41 4 69 17 196 117 22 . . . . . . Largest 2 | 2 2 2 2 2 2 2 2 2 2 . . . . . . Hottest 50 | 40 40 40 46 46 46 46 50 50 50 . . . . . . Shots Fired 1005 | 4 42 14 82 5 134 79 367 234 44 . . . . . . Gun 987 | 4 42 14 82 5 130 79 353 234 44 . . . . . . Cannon . | . . . . . . . . . . . . . . . . Launcher 18 | . . . . . 4 . 14 . . . . . . . . Special . | . . . . . . . . . . . . . . . . Kinetic 987 | 4 42 14 82 5 130 79 353 234 44 . . . . . . Thermal . | . . . . . . . . . . . . . . . . Explosive 18 | . . . . . 4 . 14 . . . . . . . . Electromagnetic . | . . . . . . . . . . . . . . . . Robot Hit Streak 60 | 3 16 4 12 7 60 12 15 16 8 . . . . . . Robot Miss Streak 5 | . 2 3 2 1 4 5 4 4 3 . . . . . . Penetration Max . | . . . . . . . . . . . . . . . . Secondary Targets 22 | . 1 1 1 . 1 . 8 9 1 . . . . . . Max Gunslinging Chain 1 | . 1 1 1 . 1 . 1 1 1 . . . . . . Autonomous 45 | . . . . . . 45 . . . . . . . . . Shots Hit Robots 754 | 3 31 7 60 3 108 56 255 160 46 . 6 . . 4 15 Core Hits 311 | 2 12 5 28 . 49 17 115 58 19 . 2 . . 1 3 Critical Hits 9 | . . . 1 . 4 . 2 . 2 . . . . . . Critical Kills 1 | . . . . . . . 1 . . . . . . . . Critical Parts Destroyed 5 | . . . 1 . 2 . 1 . 1 . . . . . . Melee Attacks 182 | . . . . . . . 2 6 26 6 25 . . 81 36 Impact . | . . . . . . . . . . . . . . . . Slashing 182 | . . . . . . . 2 6 26 6 25 . . 81 36 Piercing . | . . . . . . . . . . . . . . . . Sneak Attacks 13 | . . . . . . . . . 8 . 3 . . 2 . Combat Hostiles . | . . . . . . . . . . . . . . . . Follow-up Attacks 10 | . . . . . . . . . 4 . 1 . . . 5 Damage Inflicted 15953 | 26 315 98 852 83 2159 1362 4937 2732 1986 . 450 . . 310 643 Guns 11165 | 26 315 86 815 65 1600 1362 3767 2690 439 . . . . . . Cannons . | . . . . . . . . . . . . . . . . Explosions 1981 | . . . . . 481 . 1118 . 382 . . . . . . Melee 2568 | . . . . . . . . . 1165 . 450 . . 310 643 Ramming 239 | . . 12 37 18 78 . 52 42 . . . . . . . Kinetic 11165 | 26 315 86 815 65 1600 1362 3767 2690 439 . . . . . . Thermal 382 | . . . . . . . . . 382 . . . . . . Explosive 1599 | . . . . . 481 . 1118 . . . . . . . . Electromagnetic . | . . . . . . . . . . . . . . . . Impact . | . . . . . . . . . . . . . . . . Slashing 2568 | . . . . . . . . . 1165 . 450 . . 310 643 Piercing . | . . . . . . . . . . . . . . . . Highest Corruption 11 | . . . . . . 9 . . . 10 10 10 11 11 . Average Corruption 9 | . . . . . . 8 . . . 10 10 10 10 11 . Corruption Purged . | . . . . . . . . . . . . . . . . Effects 47 | . . . . . . 21 . . . 3 16 4 3 . . Message Errors 7 | . . . . . . 6 . . . . . . 1 . . Matter Fused 8 | . . . . . . 4 . . . 1 2 . 1 . . Heat Flow Errors 6 | . . . . . . 3 . . . . 3 . . . . Energy Discharges 5 | . . . . . . 3 . . . 1 . 1 . . . Parts Rejected 1 | . . . . . . 1 . . . . . . . . . Data Loss (minor) 3 | . . . . . . 1 . . . 1 . 1 . . . Data Loss (major) 1 | . . . . . . 1 . . . . . . . . . Alerts 1 | . . . . . . . . . . . 1 . . . . Misdirections 12 | . . . . . . . . . . . 9 2 1 . . Targeting Errors 3 | . . . . . . 2 . . . . 1 . . . . Overload Shots . | . . . . . . . . . . . . . . . . Overflow Damage 499 | . . . . . 50 . 8 5 326 . 51 . . 18 41 Projectiles . | . . . . . . . . . . . . . . . . Explosions 136 | . . . . . 50 . 8 . 78 . . . . . . Melee 363 | . . . . . . . . 5 248 . 51 . . 18 41 Knockbacks 4 | . . 1 2 . . . . 1 . . . . . . . Impact 4 | . . 1 2 . . . . 1 . . . . . . . Kinetic . | . . . . . . . . . . . . . . . . Secondary . | . . . . . . . . . . . . . . . . Self-Inflicted Damage 95 | . . . . . . . 48 . 47 . . . . . . Shots 5 | . . . . . . . 4 . 1 . . . . . . Rammed 26 | . . 2 5 1 10 . 5 3 . . . . . . . Targets Rammed 27 | . . 2 5 1 10 . 6 3 . . . . . . . Kicked . | . . . . . . . . . . . . . . . . Crushed 1 | . . . . . . . 1 . . . . . . . . Highest Temperature 275 | . 12 4 15 . . 265 114 275 166 . 219 . . . 26 Average Temperature 47 | . 7 3 5 . . 132 22 64 77 . 104 . . . 10 Received Heat Transfer 1773 | . 57 . 72 6 . 12 675 279 153 . 6 9 . 9 495 Siege Activations . | . . . . . . . . . . . . . . . . Robots Corrupted . | . . . . . . . . . . . . . . . . Combat Hostiles . | . . . . . . . . . . . . . . . . Parts Fried . | . . . . . . . . . . . . . . . . Impact Corruptions 1 | . . . . . . . . 1 . . . . . . . Robots Melted . | . . . . . . . . . . . . . . . . Combat Hostiles . | . . . . . . . . . . . . . . . . Parts Melted . | . . . . . . . . . . . . . . . . Heat Transferred 300 | . . . . . . . . . 300 . . . . . . Parts Sabotaged . | . . . . . . . . . . . . . . . . Parts Stolen . | . . . . . . . . . . . . . . . . Parts Stripped . | . . . . . . . . . . . . . . . . Power Chain Reactions . | . . . . . . . . . . . . . . . . Missiles Intercepted . | . . . . . . . . . . . . . . . . Alert | -11 -10 -10 -9 -9 -9 -8 -8 -8 -7 -7 -7 -7 -7 -7 -7 ------- Run | Scr Mat Min Mat Min Exi Min Mat Sto Fac Was Fac Low Low Zio Dee Peak Influence 861 | 5 80 151 240 108 . 208 861 541 468 117 166 . . . . Average Influence 189 | 4 42 41 66 44 . 63 351 307 302 70 44 . . . . Maximum Alert Level 3 | . . . 1 . . 1 3 2 2 . . . . . . Low Security (%) 60 | 100 100 100 95 100 . 95 23 21 26 100 100 . . . . Level 1 25 | . . . 4 . . 4 48 51 42 . . . . . . Level 2 10 | . . . . . . . 12 26 30 . . . . . . Level 3 3 | . . . . . . . 16 . . . . . . . . Level 4 . | . . . . . . . . . . . . . . . . Level 5 . | . . . . . . . . . . . . . . . . High Security . | . . . . . . . . . . . . . . . . Max Security . | . . . . . . . . . . . . . . . . Squads Dispatched 11 | . 3 . 1 . . . 3 . 3 . 1 . . . . Investigation 2 | . 1 . . . . . . . 1 . . . . . . Extermination . | . . . . . . . . . . . . . . . . Reinforcement 8 | . 2 . 1 . . . 2 . 2 . 1 . . . . Assault 1 | . . . . . . . 1 . . . . . . . . Garrison . | . . . . . . . . . . . . . . . . Intercept . | . . . . . . . . . . . . . . . . Construction Impeded 1 | . . . . . . . 1 . . . . . . . . Haulers Reinforced 1 | . . . . . . . . . 1 . . . . . . Stealth | -11 -10 -10 -9 -9 -9 -8 -8 -8 -7 -7 -7 -7 -7 -7 -7 --------- Run | Scr Mat Min Mat Min Exi Min Mat Sto Fac Was Fac Low Low Zio Dee Distress Signals 13 | . 1 . 2 . . . 6 2 . . 1 . . 1 . Communications Jammed . | . . . . . . . . . . . . . . . . Distress Signals . | . . . . . . . . . . . . . . . . Times Spotted 255 | . 17 5 14 4 22 21 78 33 7 7 12 2 1 26 6 Peak Tracking Total 10 | . 6 3 3 4 7 4 10 5 3 5 8 3 1 4 3 Tactical Retreats 22 | . 1 . 1 . 4 3 6 2 . 1 3 . . 1 . Traps | -11 -10 -10 -9 -9 -9 -8 -8 -8 -7 -7 -7 -7 -7 -7 -7 ------- Run | Scr Mat Min Mat Min Exi Min Mat Sto Fac Was Fac Low Low Zio Dee Traps Triggered 4 | . 2 . . . . . . 1 1 . . . . . . Indirectly . | . . . . . . . . . . . . . . . . Trap Hack Attempts . | . . . . . . . . . . . . . . . . Triggered . | . . . . . . . . . . . . . . . . Disarmed 4 | . . . . . . . . 4 . . . . . . . Reprogrammed . | . . . . . . . . . . . . . . . . Reused . | . . . . . . . . . . . . . . . . Traps Extracted . | . . . . . . . . . . . . . . . . Installed . | . . . . . . . . . . . . . . . . Triggered . | . . . . . . . . . . . . . . . . Machines | -11 -10 -10 -9 -9 -9 -8 -8 -8 -7 -7 -7 -7 -7 -7 -7 ---------- Run | Scr Mat Min Mat Min Exi Min Mat Sto Fac Was Fac Low Low Zio Dee Machines Disabled 23 | . . . . 1 5 1 4 4 8 . . . . . . Max in Single Turn 8 | . . . . . 2 1 1 1 8 . . . . . . Machines Sabotaged . | . . . . . . . . . . . . . . . . Garrisons Compromised . | . . . . . . . . . . . . . . . . Overloaded Fab Kills . | . . . . . . . . . . . . . . . . Fab Network Shutdowns . | . . . . . . . . . . . . . . . . Hacking | -11 -10 -10 -9 -9 -9 -8 -8 -8 -7 -7 -7 -7 -7 -7 -7 --------- Run | Scr Mat Min Mat Min Exi Min Mat Sto Fac Was Fac Low Low Zio Dee Machines Accessed 46 | . 4 1 6 . 2 . 6 14 8 . 5 . . . . Terminals 35 | . 4 . 4 . . . 4 12 6 . 5 . . . . Fabricators 1 | . . . . . . . . . 1 . . . . . . Repair Stations 1 | . . . . . . . 1 . . . . . . . . Recycling Units 3 | . . . 1 . . . . 2 . . . . . . . Scanalyzers 3 | . . . 1 . . . 1 . 1 . . . . . . Garrison Access . | . . . . . . . . . . . . . . . . Total Hacks 131 | . 10 1 18 . 2 . 17 46 27 . 10 . . . . Successful 74 | . 3 1 11 . 2 . 7 27 19 . 4 . . . . Failed 56 | . 7 . 7 . . . 10 19 7 . 6 . . . . Catastrophic 10 | . . . 2 . . . 2 5 . . 1 . . . . Database Lockouts 1 | . . . . . . . . . 1 . . . . . . Manual 93 | . 8 . 14 . 1 . 8 37 15 . 4 . . 6 . Terminals 104 | . 10 . 15 . . . 12 39 18 . 10 . . . . Fabricators 5 | . . . . . . . . . 5 . . . . . . Repair Stations 3 | . . . . . . . 3 . . . . . . . . Recycling Units 8 | . . . 1 . . . . 7 . . . . . . . Scanalyzers 8 | . . . 2 . . . 2 . 4 . . . . . . Garrison Access . | . . . . . . . . . . . . . . . . Terminal Hacks 41 | . 3 1 5 . 2 . 2 17 8 . 3 . . . . Record 1 | . . . . . 1 . . . . . . . . . . Prototype ID Bank 7 | . 1 . 1 . . . . 1 3 . 1 . . . . Open Door 5 | . . 1 . . . . . 4 . . . . . . . Branch Access Points 5 | . 1 . 1 . . . 1 . 1 . 1 . . . . Machine Index 1 | . . . . . . . . . . . 1 . . . . Terminal Index 3 | . . . 1 . . . . 1 1 . . . . . . Alert Level 1 | . . . . . . . . 1 . . . . . . . Unreport Threat 3 | . . . . . . . . 3 . . . . . . . Locate Traps 5 | . . . 1 . . . . 4 . . . . . . . Disarm Traps 1 | . . . . . . . . 1 . . . . . . . Recall Investigation 1 | . . . . . . . . . 1 . . . . . . Recall Reinforcements 1 | . . . . . . . . . 1 . . . . . . Hauler Manifests 5 | . 1 . 1 . . . 1 1 1 . . . . . . Zone Layout 1 | . . . . . . . . 1 . . . . . . . EX-Prototype ID Bank 1 | . . . . . 1 . . . . . . . . . . Fabricator Hacks 3 | . . . . . . . . . 3 . . . . . . Load Schematic 1 | . . . . . . . . . 1 . . . . . . Build 2 | . . . . . . . . . 2 . . . . . . Repair Station Hacks 1 | . . . . . . . 1 . . . . . . . . Scan Component 1 | . . . . . . . 1 . . . . . . . . Recycling Unit Hacks . | . . . . . . . . . . . . . . . . Scanalyzer 6 | . . . 1 . . . 2 . 3 . . . . . . Insert Component 4 | . . . 1 . . . 1 . 2 . . . . . . Analyze 2 | . . . . . . . 1 . 1 . . . . . . Garrison Access Hacks . | . . . . . . . . . . . . . . . . Unauthorized Hacks 65 | . 1 . 14 . . . 5 27 13 . 5 . . . . Terminals 16 | . . . 5 . . . 2 5 3 . 1 . . . . Track 1 | . . . 1 . . . . . . . . . . . . Assimilate 1 | . . . . . . . . . 1 . . . . . . Botnet 10 | . . . 3 . . . 2 2 2 . 1 . . . . Disrupt 3 | . . . 1 . . . . 2 . . . . . . . Operators 1 | . . . . . . . . 1 . . . . . . . Fabricators 2 | . . . . . . . . . 2 . . . . . . Siphon 1 | . . . . . . . . . 1 . . . . . . Haulers 1 | . . . . . . . . . 1 . . . . . . Repair Stations . | . . . . . . . . . . . . . . . . Recycling Units 5 | . . . . . . . . 5 . . . . . . . Monitor 1 | . . . . . . . . 1 . . . . . . . Reject 2 | . . . . . . . . 2 . . . . . . . Recyclers 1 | . . . . . . . . 1 . . . . . . . Mask 1 | . . . . . . . . 1 . . . . . . . Scanalyzers . | . . . . . . . . . . . . . . . . Garrison Access . | . . . . . . . . . . . . . . . . Data Cores Recovered 1 | . . . . . . . . . 1 . . . . . . Used . | . . . . . . . . . . . . . . . . Hacking Detections 41 | . 3 . 6 . . . 6 14 7 . 5 . . . . Full Trace Events 1 | . . . . . . . . 1 . . . . . . . Feedback Events . | . . . . . . . . . . . . . . . . Feedback Blocked . | . . . . . . . . . . . . . . . . Robot Schematics Acquired . | . . . . . . . . . . . . . . . . Robots Built . | . . . . . . . . . . . . . . . . Matter . | . . . . . . . . . . . . . . . . Time . | . . . . . . . . . . . . . . . . Total Robot Build Rating . | . . . . . . . . . . . . . . . . Part Schematics Acquired 2 | . . . . . . . 1 . 1 . . . . . . Parts Built 2 | . . . . . . . . . 2 . . . . . . Matter 384 | . . . . . . . . . 384 . . . . . . Time 256 | . . . . . . . . . 256 . . . . . . Total Part Build Rating 16 | . . . . . . . . . 16 . . . . . . Parts Repaired . | . . . . . . . . . . . . . . . . Time . | . . . . . . . . . . . . . . . . Parts Recycled . | . . . . . . . . . . . . . . . . Recycled Matter . | . . . . . . . . . . . . . . . . Retrieved Matter . | . . . . . . . . . . . . . . . . Retrieved Components . | . . . . . . . . . . . . . . . . Parts Scanalyzed 2 | . . . . . . . 1 . 1 . . . . . . Part Schematics Acquired 2 | . . . . . . . 1 . 1 . . . . . . Parts Damaged . | . . . . . . . . . . . . . . . . Bothacking | -11 -10 -10 -9 -9 -9 -8 -8 -8 -7 -7 -7 -7 -7 -7 -7 ------------ Run | Scr Mat Min Mat Min Exi Min Mat Sto Fac Was Fac Low Low Zio Dee Used RIF Installer . | . . . . . . . . . . . . . . . . Robots Hacked . | . . . . . . . . . . . . . . . . Non-combat . | . . . . . . . . . . . . . . . . Combat . | . . . . . . . . . . . . . . . . Robot Hacks Applied . | . . . . . . . . . . . . . . . . Relay Couplers Released . | . . . . . . . . . . . . . . . . Robots Rewired . | . . . . . . . . . . . . . . . . Allies Hacked . | . . . . . . . . . . . . . . . . Hacks Repelled . | . . . . . . . . . . . . . . . . Allies | -11 -10 -10 -9 -9 -9 -8 -8 -8 -7 -7 -7 -7 -7 -7 -7 -------- Run | Scr Mat Min Mat Min Exi Min Mat Sto Fac Was Fac Low Low Zio Dee Total Allies 25 | . . 1 . 3 . . . . . 19 . . . 2 . Largest Group 19 | . . 1 . 3 2 1 . . . 19 1 . . 2 . Highest-Rated Group 487 | . . 31 . 40 32 14 . . . 487 31 . . 188 . Highest-Rated Ally 94 | . . 31 . 16 16 14 . . . 35 31 . . 94 . Total Orders 4 | . . . . . 4 . . . . . . . . . . GOTO 2 | . . . . . 2 . . . . . . . . . . GUARD 1 | . . . . . 1 . . . . . . . . . . AID 1 | . . . . . 1 . . . . . . . . . . Ally Attacks 351 | . . . . 14 64 . . . . 176 . . . 97 . Total Damage 8482 | . . . . 151 450 . . . . 5095 . . . 2786 . Kills 47 | . . . . 4 3 . . . . 13 . . . 27 . Allies Corrupted . | . . . . . . . . . . . . . . . . Allies Melted . | . . . . . . . . . . . . . . . . Intel | -11 -10 -10 -9 -9 -9 -8 -8 -8 -7 -7 -7 -7 -7 -7 -7 ------- Run | Scr Mat Min Mat Min Exi Min Mat Sto Fac Was Fac Low Low Zio Dee Robot Analysis Total . | . . . . . . . . . . . . . . . . Derelict Logs Recovered 4 | . . 1 . 1 . . . . . . . . 1 1 . Drone Launches . | . . . . . . . . . . . . . . . . Drone Recoveries . | . . . . . . . . . . . . . . . . Exploration | -11 -10 -10 -9 -9 -9 -8 -8 -8 -7 -7 -7 -7 -7 -7 -7 ------------- Run | Scr Mat Min Mat Min Exi Min Mat Sto Fac Was Fac Low Low Zio Dee Turns Passed 11538 | 22 745 1056 1036 330 1740 693 1987 1672 540 113 216 56 51 1073 208 Spaces Moved 7099 | 13 330 560 420 157 710 287 661 600 453 161 489 213 192 1533 320 Core . | . . . . . . . . . . . . . . . . Treads 3800 | . 291 560 420 157 710 287 661 600 114 . . . . . . Legs 52 | 13 39 . . . . . . . . . . . . . . Wheels . | . . . . . . . . . . . . . . . . Hover . | . . . . . . . . . . . . . . . . Flight 3247 | . . . . . . . . . 339 161 489 213 192 1533 320 Fastest Speed 26 | 120 120 180 180 200 200 200 200 220 26 26 26 26 26 26 26 Average Speed 119 | 120 175 180 199 200 202 200 204 220 67 26 26 26 26 26 26 Slowest Speed 280 | 120 180 180 200 200 205 205 280 220 200 26 26 26 26 26 35 Overloaded Moves . | . . . . . . . . . . . . . . . . Propulsion Burnouts . | . . . . . . . . . . . . . . . . Robots Hopped 12 | . . . . . . . . . 3 . 5 . . . 4 Cave-ins Triggered . | . . . . . . . . . . . . . . . . Time Travels 1 | . . . . . . . . . . . . . . . 1 Exploration Rate (%) 54 | 2 61 95 39 47 88 75 53 91 10 83 19 53 46 79 24 Regions Visited 15 Branch Regions 9 Pre-discovered Areas 4 | . . 1 . . 1 . . . . . . . . 2 . Known Exits Taken 7 | . 1 . 1 . . . 1 . . . 1 1 1 1 . Unknown Exits Taken 6 | 1 . 1 . 1 1 1 . 1 . . . . . . . Scrap Searched 10 | . . 1 . . . 2 . . . . . 2 2 3 . Spaces Dug 33 | . . . . . . . 7 2 2 5 13 . . 2 2 Terrain Destroyed 158 | . . . . . 19 25 88 2 2 5 13 . . 2 2 Melee 28 | . . . . . . . 2 2 2 5 13 . . 2 2 Projectile 25 | . . . . . . 25 . . . . . . . . . AOE 105 | . . . . . 19 . 86 . . . . . . . . Actions | -11 -10 -10 -9 -9 -9 -8 -8 -8 -7 -7 -7 -7 -7 -7 -7 --------- Run | Scr Mat Min Mat Min Exi Min Mat Sto Fac Was Fac Low Low Zio Dee Total 9325 | 15 457 601 543 167 885 374 1072 871 647 223 542 212 192 2128 396 Wait 1114 | . 78 3 37 4 12 41 118 75 87 55 40 . 1 522 41 Move 7063 | 12 329 559 419 156 709 286 660 599 447 160 479 212 191 1532 313 Hop 10 | . . . . . . . . . 3 . 4 . . . 3 Pick Up 141 | . 15 13 17 . 32 9 27 20 7 1 . . . . . Fast Attach 37 | 1 3 1 3 . 5 2 10 2 7 . . . . 1 2 Attach 44 | . . . 2 . 7 9 9 2 14 . . . . . 1 Detach 8 | . . . . . 2 2 4 . . . . . . . . Swap 65 | . 5 1 5 2 7 3 16 20 5 1 . . . . . Drop 166 | . 6 15 14 . 32 5 24 27 35 1 . . . 1 6 Fire 496 | 2 21 7 41 4 69 17 196 117 22 . . . . . . Melee 154 | . . . . . . . 2 6 20 5 19 . . 72 30 Ram . | . . . . . . . . . . . . . . . . Kick . | . . . . . . . . . . . . . . . . Crush 27 | . . 2 5 1 10 . 6 3 . . . . . . . Escape Stasis . | . . . . . . . . . . . . . . . . Rewire . | . . . . . . . . . . . . . . . . Trap . | . . . . . . . . . . . . . . . . Miscellaneous . | . . . . . . . . . . . . . . . . Route ------- -11/Scrapyard -10/Materials (discovered 3 exits: *Mat / *Min x2) -10/Mines (discovered 2 exits: *Mat x2) -9/Materials (discovered 2 exits: *Min x2) -9/Mines (discovered 3 exits: *Mat x2 / *Exi) -9/Exiles -8/Mines -8/Materials (discovered 2 exits: *Fac / *Sto) -8/Storage -7/Factory (discovered 2 exits: *Low x2) -7/Waste -7/Factory (discovered 2 exits: *Low x2) -7/Lower Caves -7/Lower Caves -7/Zion (discovered 2 exits: *Dee / [*Pro]) -7/Deep Caves History --------- Turn | Location | Event 7 | -11/Scrapyard | Discovered new exit (range 1) 23 | -11/Scrapyard | Entered Materials 305 | -10/Materials | Build established: Mutant 462 | -10/Materials | Discovered new exit (range 12) 606 | -10/Materials | Identified exit to Mines 768 | -10/Materials | Entered Mines 775 | -10/Mines | Met a Derelict who couldn't figure out how to use a Trap Extractor 846 | -10/Mines | Met a Derelict bent on vengeance 965 | -10/Mines | Discovered new exit (range 7) 1060 | -10/Mines | Received a Rocket Launcher from a helpful Derelict 1095 | -10/Mines | Learned location of Zion (-7) 1248 | -10/Mines | Received a Mining Laser from a helpful Derelict 1745 | -10/Mines | Discovered new exit (range 6) 1779 | -10/Mines | Found a damaged Exp. Sensor Array with a note attached 1783 | -10/Mines | Found Prototype Device 1824 | -10/Mines | Entered Materials 1824 | -9/Materials | Evolved 2 slots: Utility x2 2180 | -9/Materials | Build established: Hauler-Mutant 2218 | -9/Materials | Identified Exp. Sensor Array 2403 | -9/Materials | Identified exit to Mines 2860 | -9/Materials | Entered Mines 2908 | -9/Mines | Learned Materials interactive machine intel 2970 | -9/Mines | Discovered new exit (range 8) 3046 | -9/Mines | Discovered new exit (range 5) 3052 | -9/Mines | Assisted by bots powering up and referring to "LRC-V3" 3178 | -9/Mines | Deemed a non-threat by the Exiles lab entrance 3178 | -9/Mines | Discovered new exit (range 5) 3190 | -9/Mines | Entered Exiles 3190 | -9/Exiles | Accompanied by 2 allies 3238 | -9/Exiles | Met 8R-AWN 3272 | -9/Exiles | Met EX-HEX 3376 | -9/Exiles | Met EX-DEC 3591 | -9/Exiles | Met EX-BIN 3619 | -9/Exiles | Aligned with FarCom system 3621 | -9/Exiles | Given EX-Vault access code 3667 | -9/Exiles | Opened EX-Vault 3679 | -9/Exiles | Found Chronowheel 3682 | -9/Exiles | Found AWS/Gauss 3689 | -9/Exiles | Found Potential Leg 3693 | -9/Exiles | Found Potential Leg 3733 | -9/Exiles | Warned to stay clear of 0b10 Research branches 4064 | -9/Exiles | Attacked by the Exiles 4156 | -9/Exiles | Destroyed 8R-AWN 4182 | -9/Exiles | Lost 6 parts (1p2n1u2w) 4489 | -9/Exiles | Destroyed EX-DEC 4519 | -9/Exiles | Destroyed EX-HEX 4572 | -9/Exiles | Destroyed EX-BIN 4613 | -9/Exiles | Found Prototype Device 4656 | -9/Exiles | Found Deploy-a-Sentry 4673 | -9/Exiles | Found Prototype Energy Gun 4717 | -9/Exiles | Identified AWS/EX-DEC 4901 | -9/Exiles | Discovered new exit (range 15) 4930 | -9/Exiles | Stole four prototypes: Potential Leg, Chronowheel, AWS/Gauss, Deploy-a-Sentry 4930 | -9/Exiles | Entered Mines 4930 | -8/Mines | Accompanied by 1 ally 4931 | -8/Mines | NK-0LA came to Exiles' defense 4976 | -8/Mines | Destroyed NK-0LA 4990 | -8/Mines | Identified System Purifier 4992 | -8/Mines | Found Prototype Device 4992 | -8/Mines | Identified Thermal Barrier 5032 | -8/Mines | Core integrity fell below 50% 5599 | -8/Mines | Discovered new exit (range 14) 5623 | -8/Mines | Entered Materials 5623 | -8/Materials | Evolved 2 slots: Utility x2 5624 | -8/Materials | Loaded intel: 19 interactive machine locations 6116 | -8/Materials | Discovered new exit (range 3) 6254 | -8/Materials | Build established: Scavenger-Mutant 6262 | -8/Materials | Lost 3 parts (1u2w) 6889 | -8/Materials | Build established: Hauler-Mutant 7175 | -8/Materials | Identified exit to Storage 7214 | -8/Materials | Core integrity fell below 50% 7223 | -8/Materials | First assault squad dispatched 7610 | -8/Materials | Entered Storage 8707 | -8/Storage | Core integrity fell below 20% 9090 | -8/Storage | Discovered new exit (range 7) 9282 | -8/Storage | Entered Factory 9282 | -7/Factory | Evolved 2 slots: Propulsion x2 9338 | -7/Factory | Identified exit to Lower Caves 9468 | -7/Factory | Lost 3 parts (1n2u) 9500 | -7/Factory | Central database locked down 9800 | -7/Factory | Fabricated Cmb. Antigrav System? 9822 | -7/Factory | Sucked down chute 9822 | -7/Factory | Entered Waste 9823 | -7/Waste | Met a frightened Derelict 9826 | -7/Waste | Spotted C-40 Crusher 9834 | -7/Waste | Spotted C-40 Crusher 9837 | -7/Waste | EMP discharged 9837 | -7/Waste | System corruption reached 10% 9844 | -7/Waste | Spotted C-40 Crusher 9847 | -7/Waste | Spotted C-40 Crusher 9847 | -7/Waste | Spotted C-40 Crusher 9853 | -7/Waste | Met Warlord forces unprepared to attack 9881 | -7/Waste | Spotted C-40 Crusher 9881 | -7/Waste | Allies destroyed C-40 Crusher 9910 | -7/Waste | Allies destroyed C-40 Crusher 9911 | -7/Waste | Discovered new exit (range 12) 9920 | -7/Waste | Identified exit to Factory 9935 | -7/Waste | Entered Factory 9935 | -7/Factory | Accompanied by 1 ally 10129 | -7/Factory | Discovered exit to Lower Caves (range 15) 10151 | -7/Factory | Entered Lower Caves 10155 | -7/Lower Caves | Spotted B-75 Beast 10201 | -7/Lower Caves | Build established: Sprinter 10203 | -7/Lower Caves | Discovered new exit (range 15) 10206 | -7/Lower Caves | Identified exit to Lower Caves 10207 | -7/Lower Caves | Attracted the attention of an 0b10 checkpoint 10207 | -7/Lower Caves | Entered another Lower Caves area 10254 | -7/Lower Caves | Discovered new exit (range 12) 10258 | -7/Lower Caves | Identified exit to Zion 10258 | -7/Lower Caves | Entered Zion 10268 | -7/Zion | System corruption cleaned by Quarantine Array 10270 | -7/Zion | Given A8's code to call for help 10275 | -7/Zion | Discovered new exit (range 16) 10290 | -7/Zion | Visited the Megawrench Repair Shop 10310 | -7/Zion | Learned location of Quarantine (-2) 10320 | -7/Zion | Learned location of Armory (-4) 10322 | -7/Zion | Acquired unknown access codes intercepted by a Zionite 10335 | -7/Zion | Learned Factory scanalyzer intel 10452 | -7/Zion | Identified exit to Deep Caves 10484 | -7/Zion | Megawrench repaired 9 parts 10522 | -7/Zion | Opened final containment barrier to the Deep Caves 10526 | -7/Zion | Saw the warning signs outside the Deep Caves entrance 10534 | -7/Zion | Enhanced Grunt warped into view, answering call for help 10535 | -7/Zion | Enhanced Grunt warped into view, answering call for help 10584 | -7/Zion | Attacked by Zionites 11039 | -7/Zion | Build established: Scavenger-Sprinter 11331 | -7/Zion | Entered Deep Caves 11455 | -7/Deep Caves | Attacked by Z-Imprinter 11469 | -7/Deep Caves | Activated Chronowheel 11469 | -7/Deep Caves | Spacetime reconverged on an earlier point 11501 | -7/Deep Caves | Core integrity fell below 50% 11514 | -7/Deep Caves | Core integrity fell below 20% 11539 | -7/Deep Caves | Destroyed by Y5-0DQ(z) with Zionite Laser-S Last Messages --------------- 11487_ Mak. Axe follow-up attack on Z-Imprinter. 11487_ Exp. Heat Sink severed. 11489_ Imp. Cesium-ion Thruster destroyed. 11490_ Thermal Barrier destroyed. 11494_ Mak. Axe follow-up attack on Z-Imprinter. 11494_ Exp. Heat Sink severed. 11500_ Cold Fusion Reactor destroyed. 11500_ Mak. Axe destroyed. 11503_ Machine disabled. 11509_ Lgt. Angular Momentum Engine destroyed. 11509_ Imp. Cesium-ion Thruster destroyed. 11513_ SG-726(z) destroyed. 11513_ Acquired Prototype Protection. 11513_ Identified Zio. Light Carapace. 11517_ Destroyed Prototype Hover Unit. 11519_ Zio. Light Carapace destroyed. 11523_ Acquired 5 matter. 11524_ Acquired Zio. Light Carapace. 11526_ Acquired 8 matter. 11531_ Zio. Light Carapace destroyed. Map ----- +----------------------------------------------------+ | #??????????????????????????????? | | ???????????????????????????????? | | #?????????????????????? ????????? | | #???????????????????? ???????? | | ##????###??######## ???????? | | ######"#### ??????? | | ??????????? | | #????????? ??????? | | #????????? ##????? | | ###""#### #????????? ## #? | | ###?##";### #????????? ? # | | ##????## #????????# ?? | | #????## #####??## ?? | | ##???# #?? ??? | | !&#???# ### #?? #???# | | #???# #?## ## #???# | | #???## "#???##??### #???# | | ##????## #???????????? #???# | | #??????# #????????????# #????# | | #?????# #?????#####??# #?????# | | #?????# #????## #### #?????# | | ##?????# ###### #????## | | ##??????# !## ### #???## | | #???????#% ##?# #???# | | ???????#%;# ##??# ###?# | | ??????#@### #??## ### | | #????##z#?## # #??# ## | | #?????#;I####### #??# | | #?????## ! ##??# ##?## | | ???????##; "#??# #??## | | ???????????????## ##??# #??## | | ???????????????????# ##### ##??# ### | | ????????????????????## # ##??## #### | | ?????????????????????????#" #! " #???# #### | | ?????????????????????????#" %= "" ##??# ##? | | ?????????????????????????## * " #### #? | | ??????????????????????????##" #? | | ????????????????????????????## ##? | | ?????????????????????????????# = #############?? | | ?????????????????????????????##!==##?????????????? | | ??????????????????????????????#####??????????????? | | ?????????????????????????????????????????????????? | | ?????????????????????????????????????????????????? | | | | | | | | | | | | | | | +----------------------------------------------------+ Best States ------------- Heat Dissipation 34 Energy Generation 18 Energy Capacity 1200 Matter Stores 450 Matter Capacity 450 Sight Range 16 Robot Scan Range 30 Terrain Scan Density 10 Armor Coverage 400 Resistance: TH 50 Weapon Cycling 25 Evasion (%) 64 Core Analysis 10 Recoil Reduction 4 Salvage Targeting 4 Offensive Hacking 20 Item Schematics ----------------- Imp. Flight Unit | -8/Materials | Scanalyzed Cmb. Antigrav System | -7/Factory | Scanalyzed Robot Schematics ------------------ None Fabricated ------------ Cmb. Antigrav System | x2 | -7/Factory Alien Tech Used ----------------- None Achievements -------------- None Challenges ------------ None Game ------ Seed TractorSpectralMaul Manual? 0 Play Time 02:03:51 Cumulative 600.7 hours Start 2019.11.13 @ 12:04:34 End 2019.11.13 @ 16:16:16 Sessions 2 Manual Loads 0 Difficulty Rogue Special Mode None Game No. 383 Rogue 383 Adventurer 0 Explorer 0 Win Type - Total 99 Types 66/6/7/10/5/1/4 Lore% 96 Gallery% 94 Achievement% 80 Wizard Run 0 Options --------- ASCII 0 Keyboard 0 Movement Numpad Keybinds 0 Fullscreen 2 Font 18/SmallcapsGlow Map View 76x50 Tactical HUD 1 Map Filters NONE Filters NONE Steam 1 RUN: 2d3dc43e-f87d-4e37-bb56-2e1cc45cbe83